[Event "*** SCC Grand Prix: Titled Tuesday Blitz"]
[Site "Chess.com"]
[Date "2020.10.13"]
[Round "9"]
[White "Triumphmate"]
[Black "paulrusan"]
[Result "1-0"]
[WhiteElo "2452"]
[BlackElo "2239"]
[TimeControl "180+1"]
[EndTime "11:41:42 PDT"]
[Termination "Triumphmate won by checkmate"]

1. e4 {[%clk 0:03:00.9]} 1... g6 {[%clk 0:02:59.6]} 2. Nf3 {[%clk 0:03:01.2]}
2... Bg7 {[%clk 0:02:59.4]} 3. d4 {[%clk 0:03:02.1]} 3... d6 {[%clk 0:02:59.6]}
4. Nc3 {[%clk 0:03:03]} 4... a6 {[%clk 0:02:59.6]} 5. Bd3 {[%clk 0:03:03.4]}
5... b5 {[%clk 0:02:59.4]} 6. Be3 {[%clk 0:03:04.3]} 6... Bb7 {[%clk 0:02:59.4]}
7. Qd2 {[%clk 0:03:04.8]} 7... Nd7 {[%clk 0:02:59.4]} 8. O-O-O {[%clk
0:03:04.4]} 8... c5 {[%clk 0:02:59.4]} 9. dxc5 {[%clk 0:03:04.5]} 9... dxc5
{[%clk 0:02:59.5]} 10. h4 {[%clk 0:02:58]} 10... h5 {[%clk 0:02:44.7]} 11. Ng5
{[%clk 0:02:56.2]} 11... Ngf6 {[%clk 0:02:38.8]} 12. f4 {[%clk 0:02:40.9]} 12...
b4 {[%clk 0:02:33.9]} 13. Nb1 {[%clk 0:02:35.9]} 13... O-O {[%clk 0:02:23.9]}
14. e5 {[%clk 0:02:32.1]} 14... Ng4 {[%clk 0:02:23.9]} 15. Bc4 {[%clk
0:02:30.6]} 15... Nxe3 {[%clk 0:02:22.7]} 16. Qxe3 {[%clk 0:02:31.5]} 16... e6
{[%clk 0:02:17.5]} 17. Nxe6 {[%clk 0:02:20.7]} 17... fxe6 {[%clk 0:02:15.4]} 18.
Bxe6+ {[%clk 0:02:21.6]} 18... Kh7 {[%clk 0:02:13.4]} 19. Rxd7 {[%clk
0:02:21.1]} 19... Qb6 {[%clk 0:02:12.9]} 20. f5 {[%clk 0:02:06.4]} 20... Bc8
{[%clk 0:01:58.4]} 21. fxg6+ {[%clk 0:02:03.4]} 21... Kh8 {[%clk 0:01:50.7]} 22.
Qg5 {[%clk 0:01:44.1]} 22... Qxe6 {[%clk 0:00:56.4]} 23. Qxh5+ {[%clk 0:01:42]}
23... Kg8 {[%clk 0:00:56]} 24. Qh7# {[%clk 0:01:41.8]} 1-0

[Event "*** SCC Grand Prix: Titled Tuesday Blitz"]
[Site "Chess.com"]
[Date "2020.10.13"]
[Round "9"]
[White "AsaHoffmann"]
[Black "Stouuf"]
[Result "0-1"]
[WhiteElo "2364"]
[BlackElo "2610"]
[TimeControl "180+1"]
[EndTime "11:41:49 PDT"]
[Termination "Stouuf won by checkmate"]

1. d4 {[%clk 0:03:00.9]} 1... d6 {[%clk 0:02:49.9]} 2. e4 {[%clk 0:02:59.6]}
2... Nf6 {[%clk 0:02:49.8]} 3. f3 {[%clk 0:02:58.8]} 3... d5 {[%clk 0:02:49.2]}
4. e5 {[%clk 0:02:58.3]} 4... Nfd7 {[%clk 0:02:48.7]} 5. f4 {[%clk 0:02:58]}
5... c5 {[%clk 0:02:49.2]} 6. c3 {[%clk 0:02:57]} 6... Nc6 {[%clk 0:02:49.5]} 7.
Nf3 {[%clk 0:02:56.8]} 7... cxd4 {[%clk 0:02:49.6]} 8. cxd4 {[%clk 0:02:56.5]}
8... Nb6 {[%clk 0:02:50]} 9. h3 {[%clk 0:02:52.1]} 9... Bf5 {[%clk 0:02:49.6]}
10. Nc3 {[%clk 0:02:51.4]} 10... e6 {[%clk 0:02:49.6]} 11. Be3 {[%clk
0:02:49.9]} 11... Bb4 {[%clk 0:02:43.9]} 12. Be2 {[%clk 0:02:44.6]} 12... O-O
{[%clk 0:02:43.3]} 13. O-O {[%clk 0:02:44]} 13... Rc8 {[%clk 0:02:42.6]} 14. Rc1
{[%clk 0:02:43.4]} 14... Bxc3 {[%clk 0:02:42]} 15. Rxc3 {[%clk 0:02:41]} 15...
Be4 {[%clk 0:02:34.7]} 16. Nd2 {[%clk 0:02:38]} 16... Ne7 {[%clk 0:02:30.4]} 17.
Nb3 {[%clk 0:02:31.8]} 17... Nf5 {[%clk 0:02:25.9]} 18. Bf2 {[%clk 0:02:30.5]}
18... Rxc3 {[%clk 0:02:24.9]} 19. bxc3 {[%clk 0:02:30.1]} 19... Nc4 {[%clk
0:02:23.2]} 20. Nc5 {[%clk 0:02:27.1]} 20... Nce3 {[%clk 0:02:17]} 21. Bxe3
{[%clk 0:02:25.6]} 21... Nxe3 {[%clk 0:02:17.9]} 22. Qc1 {[%clk 0:02:19.7]}
22... Nxf1 {[%clk 0:02:18.1]} 23. Bxf1 {[%clk 0:02:09.8]} 23... b6 {[%clk
0:02:18.4]} 24. Nb7 {[%clk 0:02:04.9]} 24... Qh4 {[%clk 0:02:03]} 25. Nd6 {[%clk
0:02:02.3]} 25... Qg3 {[%clk 0:02:00.2]} 26. Qd2 {[%clk 0:01:56.3]} 26... f6
{[%clk 0:01:57]} 27. Nxe4 {[%clk 0:01:32.4]} 27... dxe4 {[%clk 0:01:57.9]} 28.
Bc4 {[%clk 0:01:30.7]} 28... fxe5 {[%clk 0:01:40.7]} 29. Bxe6+ {[%clk
0:01:28.8]} 29... Kh8 {[%clk 0:01:40.8]} 30. dxe5 {[%clk 0:01:22.1]} 30... e3
{[%clk 0:01:40.8]} 31. Qe2 {[%clk 0:01:18.2]} 31... Rxf4 {[%clk 0:01:39.2]} 32.
Bg4 {[%clk 0:01:15.8]} 32... Rf2 {[%clk 0:01:38]} 33. Qb5 {[%clk 0:01:10.9]}
33... Qxg2# {[%clk 0:01:37.1]} 0-1

[Event "*** SCC Grand Prix: Titled Tuesday Blitz"]
[Site "Chess.com"]
[Date "2020.10.13"]
[Round "9"]
[White "RobertoJBM"]
[Black "GOGIEFF"]
[Result "0-1"]
[WhiteElo "2714"]
[BlackElo "2879"]
[TimeControl "180+1"]
[EndTime "11:42:22 PDT"]
[Termination "GOGIEFF won on time"]

1. d4 {[%clk 0:03:00.9]} 1... Nf6 {[%clk 0:02:58]} 2. c4 {[%clk 0:02:57]} 2...
e6 {[%clk 0:02:58.1]} 3. Nc3 {[%clk 0:02:56.9]} 3... d5 {[%clk 0:02:58.1]} 4.
cxd5 {[%clk 0:02:56.6]} 4... exd5 {[%clk 0:02:59]} 5. Bg5 {[%clk 0:02:56.7]}
5... c6 {[%clk 0:02:59]} 6. e3 {[%clk 0:02:55.7]} 6... h6 {[%clk 0:02:56.7]} 7.
Bh4 {[%clk 0:02:55.1]} 7... Bf5 {[%clk 0:02:54.4]} 8. Qf3 {[%clk 0:02:40.7]}
8... Qb6 {[%clk 0:02:54.5]} 9. Qxf5 {[%clk 0:01:54.8]} 9... Qxb2 {[%clk
0:02:53.5]} 10. Qc8+ {[%clk 0:01:54.6]} 10... Ke7 {[%clk 0:02:53.7]} 11. Rb1
{[%clk 0:01:54.3]} 11... Qxc3+ {[%clk 0:02:53]} 12. Kd1 {[%clk 0:01:54.4]} 12...
g5 {[%clk 0:02:48.4]} 13. Bg3 {[%clk 0:00:44.2]} 13... Ne4 {[%clk 0:02:31.7]}
14. Nf3 {[%clk 0:00:40.9]} 14... Bg7 {[%clk 0:02:08.5]} 15. Rxb7+ {[%clk
0:00:10.6]} 15... Kf6 {[%clk 0:02:08.2]} 16. Be5+ {[%clk 0:00:03]} 16... Kg6
{[%clk 0:02:07.2]} 17. Nh4+ {[%clk 0:00:02.3]} 17... gxh4 {[%clk 0:02:03.4]} 18.
Qg4+ {[%clk 0:00:02.8]} 18... Ng5 {[%clk 0:02:03.5]} 19. f4 {[%clk 0:00:01.7]}
19... Bxe5 {[%clk 0:01:44.5]} 0-1

[Event "*** SCC Grand Prix: Titled Tuesday Blitz"]
[Site "Chess.com"]
[Date "2020.10.13"]
[Round "9"]
[White "Alexander_Moskalenko"]
[Black "Chesswizard_2007"]
[Result "1-0"]
[WhiteElo "2822"]
[BlackElo "2590"]
[TimeControl "180+1"]
[EndTime "11:42:23 PDT"]
[Termination "Alexander_Moskalenko won by resignation"]

1. e4 {[%clk 0:03:00.9]} 1... a5 {[%clk 0:03:00.3]} 2. d4 {[%clk 0:03:00.6]}
2... b6 {[%clk 0:03:00.4]} 3. c4 {[%clk 0:03:01.3]} 3... Bb7 {[%clk 0:03:00.6]}
4. Nc3 {[%clk 0:03:02.1]} 4... e6 {[%clk 0:02:59.6]} 5. Be3 {[%clk 0:03:00]}
5... Bb4 {[%clk 0:02:59.6]} 6. f3 {[%clk 0:02:59.4]} 6... f5 {[%clk 0:02:58]} 7.
exf5 {[%clk 0:02:52.6]} 7... Nh6 {[%clk 0:02:58.2]} 8. Bd3 {[%clk 0:02:47.5]}
8... O-O {[%clk 0:02:57.5]} 9. fxe6 {[%clk 0:02:43.8]} 9... Nf5 {[%clk
0:02:57.2]} 10. Bxf5 {[%clk 0:02:43.4]} 10... Rxf5 {[%clk 0:02:58.1]} 11. Ne2
{[%clk 0:02:43.6]} 11... Qh4+ {[%clk 0:02:52.3]} 12. Ng3 {[%clk 0:02:42.8]}
12... dxe6 {[%clk 0:02:49.1]} 13. Qd2 {[%clk 0:02:42.4]} 13... Nc6 {[%clk
0:02:46.6]} 14. a3 {[%clk 0:02:41.3]} 14... Bxc3 {[%clk 0:02:42.6]} 15. Qxc3
{[%clk 0:02:42.2]} 15... e5 {[%clk 0:02:41]} 16. d5 {[%clk 0:02:38.1]} 16... Nd4
{[%clk 0:02:40.1]} 17. O-O-O {[%clk 0:02:38.8]} 17... Qxg3 {[%clk 0:02:23.2]}
18. hxg3 {[%clk 0:02:39.7]} 18... Ne2+ {[%clk 0:02:24]} 19. Kd2 {[%clk
0:02:39.6]} 19... Nxc3 {[%clk 0:02:24.9]} 20. Kxc3 {[%clk 0:02:40.2]} 20... Rd8
{[%clk 0:02:11]} 21. Rh4 {[%clk 0:02:36.2]} 21... h6 {[%clk 0:02:06.1]} 22. a4
{[%clk 0:02:36.1]} 22... c5 {[%clk 0:01:45.1]} 23. dxc6 {[%clk 0:02:29.5]} 23...
Rxd1 {[%clk 0:01:46]} 24. cxb7 {[%clk 0:02:29.8]} 24... Rf8 {[%clk 0:01:40.2]}
25. Bxb6 {[%clk 0:02:18.9]} 25... Rd7 {[%clk 0:01:38.3]} 26. Bxa5 {[%clk
0:02:18.1]} 26... Rxb7 {[%clk 0:01:38.3]} 27. b4 {[%clk 0:02:18.2]} 27... Ra8
{[%clk 0:01:35.9]} 28. c5 {[%clk 0:02:17.4]} 28... Rd7 {[%clk 0:01:27.9]} 29.
Re4 {[%clk 0:02:12.8]} 29... Rd5 {[%clk 0:01:22.3]} 30. Kc4 {[%clk 0:02:12.7]}
30... Rd2 {[%clk 0:01:22.2]} 31. Rxe5 {[%clk 0:02:12.1]} 31... Rxg2 {[%clk
0:01:22.8]} 32. c6 {[%clk 0:02:11.7]} 32... Rxg3 {[%clk 0:01:22.5]} 33. c7
{[%clk 0:02:08.4]} 33... Rxf3 {[%clk 0:01:23]} 34. Rd5 {[%clk 0:02:08.9]} 34...
Rff8 {[%clk 0:01:21.6]} 35. Kb5 {[%clk 0:02:07.5]} 35... g5 {[%clk 0:01:18.2]}
36. Kc6 {[%clk 0:02:07.5]} 36... g4 {[%clk 0:01:18.3]} 37. Kb7 {[%clk
0:02:08.1]} 37... Kg7 {[%clk 0:01:04.1]} 38. Rd8 {[%clk 0:02:07.9]} 38... Rfxd8
{[%clk 0:01:03.8]} 39. cxd8=Q {[%clk 0:02:08]} 39... Rxd8 {[%clk 0:01:04.6]} 40.
Bxd8 {[%clk 0:02:08.4]} 40... g3 {[%clk 0:00:59.6]} 41. a5 {[%clk 0:02:09.3]}
41... h5 {[%clk 0:00:57.1]} 42. Bb6 {[%clk 0:02:10.2]} 42... h4 {[%clk
0:00:57.2]} 43. Bc7 {[%clk 0:02:07.9]} 43... g2 {[%clk 0:00:53.6]} 44. Bh2
{[%clk 0:02:04.2]} 44... Kf7 {[%clk 0:00:53.1]} 45. a6 {[%clk 0:02:04.5]} 45...
Kg6 {[%clk 0:00:54]} 46. a7 {[%clk 0:02:04.5]} 46... g1=Q {[%clk 0:00:54.9]} 47.
Bxg1 {[%clk 0:02:04.3]} 47... h3 {[%clk 0:00:55.2]} 48. Bh2 {[%clk 0:02:05.2]}
48... Kh5 {[%clk 0:00:55.1]} 49. a8=Q {[%clk 0:02:06.1]} 49... Kg4 {[%clk
0:00:56]} 50. Qb8 {[%clk 0:02:06.8]} 1-0

[Event "*** SCC Grand Prix: Titled Tuesday Blitz"]
[Site "Chess.com"]
[Date "2020.10.13"]
[Round "9"]
[White "exoticprincess"]
[Black "K_A_S_T_O_R"]
[Result "1-0"]
[WhiteElo "2875"]
[BlackElo "2719"]
[TimeControl "180+1"]
[EndTime "11:42:31 PDT"]
[Termination "exoticprincess won by resignation"]

1. d4 {[%clk 0:03:00.5]} 1... Nf6 {[%clk 0:02:58.9]} 2. Bg5 {[%clk 0:02:59.5]}
2... Ne4 {[%clk 0:02:46.2]} 3. Bf4 {[%clk 0:02:57.3]} 3... c5 {[%clk 0:02:46.7]}
4. Nc3 {[%clk 0:02:55.3]} 4... Nxc3 {[%clk 0:02:37.8]} 5. bxc3 {[%clk
0:02:54.6]} 5... Qa5 {[%clk 0:02:37.5]} 6. Qd2 {[%clk 0:02:51.7]} 6... d6 {[%clk
0:02:23.8]} 7. e3 {[%clk 0:02:49.6]} 7... g6 {[%clk 0:02:20.3]} 8. Nf3 {[%clk
0:02:48.9]} 8... Bg7 {[%clk 0:02:20.2]} 9. h4 {[%clk 0:02:48.9]} 9... h5 {[%clk
0:02:19.2]} 10. Bc4 {[%clk 0:02:43.2]} 10... Nd7 {[%clk 0:02:08.2]} 11. Ng5
{[%clk 0:02:40.7]} 11... O-O {[%clk 0:02:00.9]} 12. Qd3 {[%clk 0:02:37.9]} 12...
e6 {[%clk 0:01:38.4]} 13. Bxd6 {[%clk 0:02:36.8]} 13... Re8 {[%clk 0:01:38.1]}
14. g4 {[%clk 0:02:34]} 14... cxd4 {[%clk 0:01:32.2]} 15. exd4 {[%clk
0:02:27.7]} 15... Nf6 {[%clk 0:01:27.9]} 16. gxh5 {[%clk 0:02:25.9]} 16... Nxh5
{[%clk 0:01:27.5]} 17. Rg1 {[%clk 0:02:24.4]} 17... Qf5 {[%clk 0:01:12.2]} 18.
Qxf5 {[%clk 0:02:12.9]} 18... gxf5 {[%clk 0:01:04]} 19. Be2 {[%clk 0:02:10.7]}
19... Nf6 {[%clk 0:01:02]} 20. Be5 {[%clk 0:02:10.8]} 20... Kf8 {[%clk
0:00:46.5]} 21. Nh7+ {[%clk 0:02:07.6]} 21... Nxh7 {[%clk 0:00:44.5]} 22. Rxg7
{[%clk 0:02:07.2]} 22... f6 {[%clk 0:00:43.5]} 23. Rxh7 {[%clk 0:02:00.9]} 23...
fxe5 {[%clk 0:00:43.8]} 24. dxe5 {[%clk 0:01:59.6]} 24... Re7 {[%clk 0:00:34.5]}
25. Rxe7 {[%clk 0:01:54.4]} 25... Kxe7 {[%clk 0:00:34.7]} 26. Kd2 {[%clk
0:01:52.9]} 26... Bd7 {[%clk 0:00:34.1]} 27. Rg1 {[%clk 0:01:52.8]} 27... Rh8
{[%clk 0:00:28.1]} 28. Rg7+ {[%clk 0:01:51.6]} 28... Kd8 {[%clk 0:00:27.9]} 29.
h5 {[%clk 0:01:50.8]} 29... Bc6 {[%clk 0:00:27.8]} 30. Ke3 {[%clk 0:01:49.3]}
30... Ke8 {[%clk 0:00:24.2]} 31. Kf4 {[%clk 0:01:47.9]} 31... Kf8 {[%clk
0:00:23.8]} 32. Rc7 {[%clk 0:01:46.2]} 1-0

[Event "*** SCC Grand Prix: Titled Tuesday Blitz"]
[Site "Chess.com"]
[Date "2020.10.13"]
[Round "9"]
[White "AndreyNeves"]
[Black "maxip32"]
[Result "0-1"]
[WhiteElo "2268"]
[BlackElo "2414"]
[TimeControl "180+1"]
[EndTime "11:42:37 PDT"]
[Termination "maxip32 won by checkmate"]

1. d4 {[%clk 0:01:17.5]} 1... Nf6 {[%clk 0:02:59.4]} 2. c4 {[%clk 0:01:16.6]}
2... g6 {[%clk 0:02:59.9]} 3. g3 {[%clk 0:01:16]} 3... Bg7 {[%clk 0:03:00.8]} 4.
Bg2 {[%clk 0:01:16.2]} 4... O-O {[%clk 0:03:01.2]} 5. Nf3 {[%clk 0:01:16.8]}
5... d6 {[%clk 0:03:01.9]} 6. O-O {[%clk 0:01:16.8]} 6... Nbd7 {[%clk
0:03:02.6]} 7. Nc3 {[%clk 0:01:16.4]} 7... e5 {[%clk 0:03:03.3]} 8. e3 {[%clk
0:01:16.9]} 8... Re8 {[%clk 0:03:02.8]} 9. b3 {[%clk 0:01:15.5]} 9... c6 {[%clk
0:03:02.4]} 10. Ba3 {[%clk 0:01:14.5]} 10... Bf8 {[%clk 0:03:00.2]} 11. dxe5
{[%clk 0:01:10.3]} 11... dxe5 {[%clk 0:03:01.1]} 12. Bxf8 {[%clk 0:01:09.7]}
12... Rxf8 {[%clk 0:02:58.4]} 13. Qd2 {[%clk 0:01:05.1]} 13... Qe7 {[%clk
0:02:57]} 14. Rfd1 {[%clk 0:01:04.1]} 14... a5 {[%clk 0:02:52.4]} 15. Qd6 {[%clk
0:01:03]} 15... Qxd6 {[%clk 0:02:50.6]} 16. Rxd6 {[%clk 0:01:02.6]} 16... Re8
{[%clk 0:02:50.2]} 17. Rad1 {[%clk 0:01:00.1]} 17... Kg7 {[%clk 0:02:49.7]} 18.
Bh3 {[%clk 0:00:55.7]} 18... Nc5 {[%clk 0:02:47.9]} 19. Bxc8 {[%clk 0:00:50]}
19... Raxc8 {[%clk 0:02:48.8]} 20. Kf1 {[%clk 0:00:36.9]} 20... e4 {[%clk
0:02:37.2]} 21. Ng5 {[%clk 0:00:28.3]} 21... h6 {[%clk 0:02:34.1]} 22. Nh3
{[%clk 0:00:26.7]} 22... g5 {[%clk 0:02:34.4]} 23. Ng1 {[%clk 0:00:22.3]} 23...
Ng4 {[%clk 0:02:26.2]} 24. h4 {[%clk 0:00:18.6]} 24... Ne5 {[%clk 0:02:17.5]}
25. hxg5 {[%clk 0:00:17.6]} 25... hxg5 {[%clk 0:02:17.3]} 26. Nh3 {[%clk
0:00:17.1]} 26... f6 {[%clk 0:02:16.7]} 27. Ke2 {[%clk 0:00:15.9]} 27... Rh8
{[%clk 0:02:15.9]} 28. Ng1 {[%clk 0:00:13.1]} 28... Rh2 {[%clk 0:02:14.8]} 29.
Kf1 {[%clk 0:00:04]} 29... f5 {[%clk 0:02:02.1]} 30. Nce2 {[%clk 0:00:02.4]}
30... Ncd3 {[%clk 0:02:00.1]} 31. Rd4 {[%clk 0:00:01.2]} 31... Rxf2# {[%clk
0:01:59.1]} 0-1

[Event "*** SCC Grand Prix: Titled Tuesday Blitz"]
[Site "Chess.com"]
[Date "2020.10.13"]
[Round "9"]
[White "tan275"]
[Black "PetrolulSah"]
[Result "0-1"]
[WhiteElo "2195"]
[BlackElo "2163"]
[TimeControl "180+1"]
[EndTime "11:42:40 PDT"]
[Termination "PetrolulSah won by resignation"]

1. d4 {[%clk 0:03:00.9]} 1... Nf6 {[%clk 0:02:59]} 2. c4 {[%clk 0:02:59.4]} 2...
e6 {[%clk 0:02:57.2]} 3. g3 {[%clk 0:02:59.6]} 3... d5 {[%clk 0:02:55.3]} 4. Nf3
{[%clk 0:02:59.6]} 4... Be7 {[%clk 0:02:54.8]} 5. Bg2 {[%clk 0:02:59.9]} 5...
O-O {[%clk 0:02:53]} 6. Nc3 {[%clk 0:03:00.5]} 6... Nbd7 {[%clk 0:02:46.3]} 7.
O-O {[%clk 0:02:55.8]} 7... b6 {[%clk 0:02:46.4]} 8. cxd5 {[%clk 0:02:55.1]}
8... Nxd5 {[%clk 0:02:45.3]} 9. Nxd5 {[%clk 0:02:50.6]} 9... exd5 {[%clk
0:02:44]} 10. Bf4 {[%clk 0:02:46.7]} 10... Bb7 {[%clk 0:02:39.8]} 11. Rc1 {[%clk
0:02:43.8]} 11... c5 {[%clk 0:02:36.2]} 12. dxc5 {[%clk 0:02:15.4]} 12... bxc5
{[%clk 0:02:33.4]} 13. Qb3 {[%clk 0:02:13.3]} 13... Bc6 {[%clk 0:02:29.4]} 14.
Rfd1 {[%clk 0:02:10.2]} 14... Qb6 {[%clk 0:02:28.3]} 15. Qc2 {[%clk 0:01:56.8]}
15... Bf6 {[%clk 0:02:23.8]} 16. b3 {[%clk 0:01:56.5]} 16... Rfe8 {[%clk
0:02:21.3]} 17. Bh3 {[%clk 0:01:54]} 17... c4 {[%clk 0:01:51]} 18. Bg5 {[%clk
0:01:35.7]} 18... Ne5 {[%clk 0:01:42.3]} 19. Nxe5 {[%clk 0:00:56.7]} 19... Bxg5
{[%clk 0:01:37.7]} 20. Qf5 {[%clk 0:00:44.8]} 20... Bxc1 {[%clk 0:01:31.3]} 21.
Qxf7+ {[%clk 0:00:43.6]} 21... Kh8 {[%clk 0:01:31.3]} 22. Bf5 {[%clk 0:00:35.8]}
22... Rxe5 {[%clk 0:01:26.4]} 23. Rxc1 {[%clk 0:00:29]} 23... Qb7 {[%clk
0:01:22.4]} 0-1

[Event "*** SCC Grand Prix: Titled Tuesday Blitz"]
[Site "Chess.com"]
[Date "2020.10.13"]
[Round "9"]
[White "Pashinskiy_Mikhail"]
[Black "MathiasWomacka"]
[Result "0-1"]
[WhiteElo "2346"]
[BlackElo "2496"]
[TimeControl "180+1"]
[EndTime "11:42:43 PDT"]
[Termination "MathiasWomacka won by resignation"]

1. e4 {[%clk 0:03:00]} 1... c5 {[%clk 0:02:59.7]} 2. Nc3 {[%clk 0:02:59.6]} 2...
Nc6 {[%clk 0:02:58.9]} 3. Bb5 {[%clk 0:02:59.2]} 3... Nd4 {[%clk 0:02:58]} 4.
Nf3 {[%clk 0:02:59]} 4... Nxb5 {[%clk 0:02:57.7]} 5. Nxb5 {[%clk 0:02:58.9]}
5... d6 {[%clk 0:02:56.5]} 6. d4 {[%clk 0:02:58.4]} 6... Nf6 {[%clk 0:02:56.3]}
7. Nc3 {[%clk 0:02:56.3]} 7... cxd4 {[%clk 0:02:50.8]} 8. Qxd4 {[%clk
0:02:57.2]} 8... e5 {[%clk 0:02:47.5]} 9. Qd3 {[%clk 0:02:55.1]} 9... h6 {[%clk
0:02:47.5]} 10. Nd2 {[%clk 0:02:52.7]} 10... Be6 {[%clk 0:02:41.9]} 11. Nc4
{[%clk 0:02:52.3]} 11... Rc8 {[%clk 0:02:41.6]} 12. Ne3 {[%clk 0:02:51.9]} 12...
Be7 {[%clk 0:02:41.6]} 13. O-O {[%clk 0:02:40.6]} 13... O-O {[%clk 0:02:41.3]}
14. Ncd5 {[%clk 0:02:35.8]} 14... Nxd5 {[%clk 0:02:33.7]} 15. Nxd5 {[%clk
0:02:36.7]} 15... Bxd5 {[%clk 0:02:33.2]} 16. Qxd5 {[%clk 0:02:37.6]} 16... Rxc2
{[%clk 0:02:28.8]} 17. Qxb7 {[%clk 0:02:37.1]} 17... Bg5 {[%clk 0:02:10.7]} 18.
Qxa7 {[%clk 0:02:27.9]} 18... Bxc1 {[%clk 0:01:55.4]} 19. Rfxc1 {[%clk
0:02:28.8]} 19... Rxb2 {[%clk 0:01:55.8]} 20. g3 {[%clk 0:02:22.7]} 20... Qa8
{[%clk 0:01:52.3]} 21. Qxa8 {[%clk 0:02:18.6]} 21... Rxa8 {[%clk 0:01:53.2]} 22.
Rc6 {[%clk 0:01:55.1]} 22... Ra4 {[%clk 0:01:34.8]} 23. Rxd6 {[%clk 0:01:52.3]}
23... Rxe4 {[%clk 0:01:33.9]} 24. Rd8+ {[%clk 0:01:43.5]} 24... Kh7 {[%clk
0:01:33]} 25. Rd3 {[%clk 0:01:43.9]} 25... Ree2 {[%clk 0:01:20.3]} 26. Rf3
{[%clk 0:01:43.7]} 26... f6 {[%clk 0:01:16.2]} 27. a4 {[%clk 0:01:42.8]} 27...
e4 {[%clk 0:01:16.3]} 28. Rf4 {[%clk 0:01:39.9]} 28... e3 {[%clk 0:01:16.2]} 29.
a5 {[%clk 0:01:33.3]} 29... exf2+ {[%clk 0:01:04.6]} 30. Kf1 {[%clk 0:01:30.3]}
30... Ra2 {[%clk 0:00:50.9]} 31. Ra4 {[%clk 0:01:29.7]} 31... Re1+ {[%clk
0:00:47.5]} 0-1

[Event "*** SCC Grand Prix: Titled Tuesday Blitz"]
[Site "Chess.com"]
[Date "2020.10.13"]
[Round "9"]
[White "chessplayer9919"]
[Black "NiranjanNavalgund"]
[Result "1-0"]
[WhiteElo "2606"]
[BlackElo "2439"]
[TimeControl "180+1"]
[EndTime "11:42:53 PDT"]
[Termination "chessplayer9919 won on time"]

1. d4 {[%clk 0:02:33.8]} 1... Nf6 {[%clk 0:02:26.2]} 2. c4 {[%clk 0:02:29.6]}
2... e6 {[%clk 0:02:27.1]} 3. Nf3 {[%clk 0:02:28.6]} 3... d5 {[%clk 0:02:27.2]}
4. e3 {[%clk 0:02:26.3]} 4... a6 {[%clk 0:02:26.7]} 5. b3 {[%clk 0:02:25.6]}
5... c5 {[%clk 0:02:24.6]} 6. cxd5 {[%clk 0:02:21]} 6... exd5 {[%clk 0:02:23.7]}
7. Bb2 {[%clk 0:02:20.1]} 7... Ne4 {[%clk 0:02:21.4]} 8. Nbd2 {[%clk 0:02:17.3]}
8... cxd4 {[%clk 0:02:18.7]} 9. Bxd4 {[%clk 0:02:13.3]} 9... Bb4 {[%clk
0:02:18.7]} 10. a3 {[%clk 0:02:11.1]} 10... Ba5 {[%clk 0:02:15.7]} 11. b4 {[%clk
0:02:08.8]} 11... Bc7 {[%clk 0:02:15.5]} 12. Bd3 {[%clk 0:01:46.3]} 12... Bf5
{[%clk 0:02:11.1]} 13. Qc2 {[%clk 0:01:39.9]} 13... Qe7 {[%clk 0:02:06.2]} 14.
b5 {[%clk 0:01:22.4]} 14... O-O {[%clk 0:02:00.2]} 15. O-O {[%clk 0:01:17.3]}
15... Bd6 {[%clk 0:00:50.9]} 16. Qb2 {[%clk 0:01:08.6]} 1-0

[Event "*** SCC Grand Prix: Titled Tuesday Blitz"]
[Site "Chess.com"]
[Date "2020.10.13"]
[Round "9"]
[White "VerdeNotte"]
[Black "TomiLen"]
[Result "1-0"]
[WhiteElo "2821"]
[BlackElo "2593"]
[TimeControl "180+1"]
[EndTime "11:43:04 PDT"]
[Termination "VerdeNotte won by resignation"]

1. d4 {[%clk 0:03:00.9]} 1... d5 {[%clk 0:02:59.5]} 2. c4 {[%clk 0:03:00.6]}
2... c6 {[%clk 0:02:59.7]} 3. Nc3 {[%clk 0:03:00.2]} 3... Nf6 {[%clk 0:02:59.6]}
4. e3 {[%clk 0:03:00.2]} 4... e6 {[%clk 0:02:59.3]} 5. Nf3 {[%clk 0:03:00.4]}
5... Nbd7 {[%clk 0:02:59.8]} 6. Bd3 {[%clk 0:03:00.7]} 6... Bd6 {[%clk
0:02:59.5]} 7. e4 {[%clk 0:03:00]} 7... dxc4 {[%clk 0:02:56.8]} 8. Bxc4 {[%clk
0:03:00]} 8... e5 {[%clk 0:02:51.7]} 9. dxe5 {[%clk 0:02:54.9]} 9... Nxe5 {[%clk
0:02:51.5]} 10. Nxe5 {[%clk 0:02:54.3]} 10... Bxe5 {[%clk 0:02:51.7]} 11. Qxd8+
{[%clk 0:02:54]} 11... Kxd8 {[%clk 0:02:51.6]} 12. Bxf7 {[%clk 0:02:53.8]} 12...
Rf8 {[%clk 0:02:12.7]} 13. Bb3 {[%clk 0:02:49]} 13... Bxc3+ {[%clk 0:02:01.8]}
14. bxc3 {[%clk 0:02:49.9]} 14... Nxe4 {[%clk 0:02:02.2]} 15. Ba3 {[%clk
0:02:50.1]} 15... Re8 {[%clk 0:01:54]} 16. O-O-O+ {[%clk 0:02:45.3]} 16... Kc7
{[%clk 0:01:53.4]} 17. Bf7 {[%clk 0:02:16.4]} 17... Re5 {[%clk 0:01:44.5]} 18.
Rhe1 {[%clk 0:02:15]} 18... Rf5 {[%clk 0:01:33]} 19. Rxe4 {[%clk 0:02:01.5]}
19... Rxf7 {[%clk 0:01:29.8]} 20. Bd6+ {[%clk 0:01:59]} 20... Kb6 {[%clk
0:01:23.4]} 21. Rb4+ {[%clk 0:01:47.8]} 21... Ka6 {[%clk 0:01:15.3]} 22. Ra4+
{[%clk 0:01:46.1]} 22... Kb6 {[%clk 0:01:15.5]} 23. c4 {[%clk 0:01:23.5]} 23...
a5 {[%clk 0:01:08.2]} 24. Rd3 {[%clk 0:01:11.9]} 24... c5 {[%clk 0:00:59.1]} 25.
Rd5 {[%clk 0:01:11.5]} 25... Kc6 {[%clk 0:00:51.7]} 26. Bg3 {[%clk 0:01:00.7]}
26... Rd7 {[%clk 0:00:41.4]} 27. Re5 {[%clk 0:00:55.8]} 27... Kb6 {[%clk
0:00:37.7]} 28. Re6+ {[%clk 0:00:53.8]} 1-0